Workbook

Sheet Лист1
A1: Школа | F1: Утвердил: | G1: должность
A2: Типовое примерное меню приготавливаемых блюд | G2: фамилия
A3: Возрастная категория | E3: 7-11 лет | G3: дата | H3: 1 | I3: 9 | J3: 2025
H4: день | I4: месяц | J4: год
A5: Неделя | B5: День недели | C5: Прием пищи | D5: Раздел меню | E5: Блюда | F5: Вес блюда, г | G5: Белки | H5: Жиры | I5: Углеводы | J5: Калорийность | K5: № рецептуры | L5: Цена
A6: 1 | B6: 1 | C6: Завтрак | D6: гор.блюдо | E6: Сырники из творога с кашей молочной "Дружба" с маслом сливочным | F6: 215 | G6: 10.55 | H6: 11.85 | I6: 39.4 | J6: 324.45 | K6: ТТК
D8: гор.напиток | E8: Кофейный напиток с молоком | F8: 200 | G8: 3.2 | H8: 2.7 | I8: 6 | J8: 60.7 | K8: № 379 Сбор.рец. На прод-ию для обуч. Во всех образ.учреж-Дели 2017
D9: хлеб бел.
D10: хлеб черн. | E10: Хлеб ржаной | F10: 30 | G10: 1.98 | H10: 0.36 | I10: 11.88 | J10: 59.4 | K10: Хим.состав и калорийность российских продуктов питания,табл 6, стр 144 , 2012 Дели +
D11: закуска
D12: фрукты | E12: Плоды и ягоды свежие (яблоки) | F12: 100 | G12: 0.4 | H12: 0.4 | I12: 9.8 | J12: 47 | K12: Хим.состав и калорийность российских продуктов питания табл 9 стр 184 , 2012 Дели +
D13: итого | F13: 545 | G13: 16.1 | H13: 15.29 | I13: 67.08 | J13: 491.55 | L13: 77.76
A14: =A6 -> 1 | B14: =B6 -> 1 | C14: Обед | D14: закуска
D15: 1 блюдо
D16: 2 блюдо
D17: гарнир
D18: напиток
D19: хлеб бел.
D20: хлеб черн.
D23: итого | F23: 0 | G23: 0 | H23: 0 | I23: 0 | J23: 0 | L23: 0
A24: =A6 -> 1 | B24: =B6 -> 1 | C24: Итого за день: | F24: 545 | G24: 16.1 | H24: 15.29 | I24: 67.08 | J24: 491.55 | L24: 77.76
A25: 1 | B25: 2 | C25: Завтрак | D25: гор.блюдо | E25: Котлета из мяса птицы с макаронными изделиями отварными, с маслом сливочным | F25: 230 | G25: 11.45 | H25: 12.46 | I25: 31.32 | J25: 289.95 | K25: ТТК
D27: гор.напиток | E27: Компот из сухофруктов (75С) | F27: 200 | G27: 0.66 | H27: 0.09 | I27: 22.03 | J27: 92.8 | K27: №349 Сбор.рец. На прод-ию для обуч. Во всех образ.учреж-Дели 2017
D28: хлеб бел.
D29: хлеб черн. | E29: Хлеб ржаной | F29: 30 | G29: 1.98 | H29: 0.36 | I29: 11.88 | J29: 59.4 | K29: Хим.состав и калорийность российских продуктов питания,табл 6, стр 144 , 2012 Дели +
D30: закуска | E30: Салат из моркови с яблоками | F30: 60 | G30: 0.64 | H30: 3.01 | I30: 5.11 | J30: 50.91 | K30: ТТК
D31: фрукты
D32: итого | F32: 520 | G32: 14.73 | H32: 15.92 | I32: 70.35 | J32: 493.06 | L32: 77.76
A33: =A25 -> 1 | B33: =B25 -> 2 | C33: Обед | D33: закуска
D34: 1 блюдо
D35: 2 блюдо
D36: гарнир
D37: напиток
D38: хлеб бел.
D39: хлеб черн.
D42: итого | F42: 0 | G42: 0 | H42: 0 | I42: 0 | J42: 0 | L42: 0
A43: =A25 -> 1 | B43: =B25 -> 2 | C43: Итого за день: | F43: 520 | G43: 14.73 | H43: 15.92 | I43: 70.35 | J43: 493.06 | L43: 77.76
A44: 1 | B44: 3 | C44: Завтрак | D44: гор.блюдо | E44: Гуляш из говядины | F44: 100 | G44: 10.39 | H44: 14.79 | I44: 10.3 | J44: 221 | K44: № 260 Сбор.рец. На прод-ию для обуч. Во всех образ.учреж-Дели -2017
D45: гарнир | E45: Каша гречневая рассыпчатая | F45: 150 | G45: 3.77 | H45: 2.29 | I45: 39.72 | J45: 214 | K45: № 171 Сбор.рец. На прод-ию для обуч. Во всех образ.учреж-Дели 2017
D46: гор.напиток | E46: Чай с сахаром, с лимоном | F46: 200 | G46: 0.11 | H46: 0.02 | I46: 10.15 | J46: 41.32 | K46: № 377 Сбор.рец. На прод-ию для обуч. Во всех образ.учреж-Дели 2017
D47: хлеб бел.
D48: хлеб черн. | E48: Хлеб ржаной | F48: 50 | G48: 3.3 | H48: 0.6 | I48: 19.8 | J48: 99 | K48: Хим.состав и калорийность российских продуктов питания табл 6 стр 134 , 2012 Дели +
E49: Сыр порционно | F49: 10 | G49: 2.63 | H49: 2.66 | I49: 0 | J49: 34.33 | K49: № 15 Сбор.рец. На прод-ию для обуч. Во всех образ.учреж-Дели -2017
D50: фрукты
D51: итого | F51: 510 | G51: 20.2 | H51: 20.36 | I51: 79.97 | J51: 609.65 | L51: 77.76
A52: =A44 -> 1 | B52: =B44 -> 3 | C52: Обед | D52: закуска
D53: 1 блюдо
D54: 2 блюдо
D55: гарнир
D56: напиток
D57: хлеб бел.
D58: хлеб черн.
D61: итого | F61: 0 | G61: 0 | H61: 0 | I61: 0 | J61: 0 | L61: 0
A62: =A44 -> 1 | B62: =B44 -> 3 | C62: Итого за день: | F62: 510 | G62: 20.2 | H62: 20.36 | I62: 79.97 | J62: 609.65 | L62: 77.76
A63: 1 | B63: 4 | C63: Завтрак | D63: гор.блюдо | E63: Птица запеченная | F63: 100 | G63: 10.42 | H63: 12.43 | I63: 8.65 | J63: 192 | K63: ТТК Хим.состав и калорийность российских продуктов питания,табл 8, стр 168 , 2012 Дели +,
D64: гарнир | E64: Пюре картофельное с маслом сливочным | F64: 153 | G64: 3.08 | H64: 6.25 | I64: 20.47 | J64: 150.45 | K64: ТТК
D65: гор.напиток | E65: Напиток из свежих фруктов (75С) | F65: 200 | G65: 0.34 | H65: 0.17 | I65: 21.46 | J65: 103.5 | K65: ТТК
D66: хлеб бел. | E66: Хлеб пшеничный | F66: 30 | G66: 2.28 | H66: 0.24 | I66: 14.76 | J66: 70.5 | K66: Хим.состав и калорийность российских продуктов питания табл 6 стр 134 , 2012 Дели +
D67: хлеб черн. | E67: Хлеб ржаной | F67: 30 | G67: 1.98 | H67: 0.36 | I67: 11.88 | J67: 59.4 | K67: Хим.состав и калорийность российских продуктов питания,табл 6, стр 144 , 2012 Дели +
D68: закуска | E68: Свекла отварная дольками | F68: 60 | G68: 1.08 | H68: 0.06 | I68: 5.88 | J68: 28.8 | K68: ТТК Хим.состав и калорийность российских продуктов питания,табл 8, стр 168 , 2012 Дели +,
D69: фрукты
D70: итого | F70: 573 | G70: 19.18 | H70: 19.51 | I70: 83.1 | J70: 604.65 | L70: 77.76
A71: =A63 -> 1 | B71: =B63 -> 4 | C71: Обед | D71: закуска
D72: 1 блюдо
D73: 2 блюдо
D74: гарнир
D75: напиток
D76: хлеб бел.
D77: хлеб черн.
D80: итого | F80: 0 | G80: 0 | H80: 0 | I80: 0 | J80: 0 | L80: 0
A81: =A63 -> 1 | B81: =B63 -> 4 | C81: Итого за день: | F81: 573 | G81: 19.18 | H81: 19.51 | I81: 83.1 | J81: 604.65 | L81: 77.76
A82: 1 | B82: 5 | C82: Завтрак | D82: гор.блюдо | E82: Тефтели мясные в сметанно-томатном соусе | F82: 100 | G82: 7.08 | H82: 11.94 | I82: 8.36 | J82: 144 | K82: №279,331 Сбор.рец. На прод-ию для питания детей в дошк образоват учрежд-Дели 2017
D83: гарнир | E83: Макаронные изделия отварные с маслом сливочным | F83: 185 | G83: 5.1 | H83: 3.62 | I83: 31.96 | J83: 176.1 | K83: № 203 Сбор.рец. На прод-ию для обуч. Во всех образ.учреж-Дели 2017
D84: гор.напиток | E84: Компот из сухофруктов (75С) | F84: 200 | G84: 0.66 | H84: 0.09 | I84: 22.03 | J84: 92.8 | K84: №349 Сбор.рец. На прод-ию для обуч. Во всех образ.учреж-Дели 2017
D85: хлеб бел. | E85: Хлеб пшеничный | F85: 45 | G85: 3.42 | H85: 0.36 | I85: 22.14 | J85: 105.75 | K85: Хим.состав и калорийность российских продуктов питания табл 6 стр 134 , 2012 Дели +
D86: хлеб черн.
E87: Сыр порционно | F87: 15 | G87: 3.95 | H87: 3.99 | I87: 0 | J87: 51.5 | K87: № 15 Сбор.рец. На прод-ию для обуч. Во всех образ.учреж-Дели 2017
D88: фрукты
D89: итого | F89: 545 | G89: 20.21 | H89: 20 | I89: 84.5 | J89: 570.15 | L89: 77.76
A90: =A82 -> 1 | B90: =B82 -> 5 | C90: Обед | D90: закуска
D91: 1 блюдо
D92: 2 блюдо
D93: гарнир
D94: напиток
D95: хлеб бел.
D96: хлеб черн.
D99: итого | F99: 0 | G99: 0 | H99: 0 | I99: 0 | J99: 0 | L99: 0
A100: =A82 -> 1 | B100: =B82 -> 5 | C100: Итого за день: | F100: 545 | G100: 20.21 | H100: 20 | I100: 84.5 | J100: 570.15 | L100: 77.76
A101: 2 | B101: 1 | C101: Завтрак | D101: гор.блюдо | E101: Сырники из творога с кашей пшенной молочной с маслом сливочным | F101: 245 | G101: 16.02 | H101: 18.13 | I101: 42.98 | J101: 386.4 | K101: ТТК
D103: гор.напиток | E103: Чай "Витаминный" с шиповником | F103: 200 | G103: 0.24 | H103: 0.09 | I103: 12.43 | J103: 54.2 | K103: № 376 Сбор.рец. На прод-ию для обуч. Во всех образ.учреж-Дели 2017
D104: хлеб бел. | E104: Хлеб пшеничный | F104: 25 | G104: 1.9 | H104: 0.2 | I104: 12.3 | J104: 58.75 | K104: Хим.состав и калорийность российских продуктов питания табл 6 стр 134 , 2012 Дели +
D105: хлеб черн. | E105: Хлеб ржаной | F105: 30 | G105: 1.98 | H105: 0.36 | I105: 11.88 | J105: 59.4 | K105: Хим.состав и калорийность российских продуктов питания,табл 6, стр 144 , 2012 Дели +
D106: закуска
D107: фрукты
D108: итого | F108: 500 | G108: 20.14 | H108: 18.78 | I108: 79.59 | J108: 558.75 | L108: 77.76
A109: =A101 -> 2 | B109: =B101 -> 1 | C109: Обед | D109: закуска
D110: 1 блюдо
D111: 2 блюдо
D112: гарнир
D113: напиток
D114: хлеб бел.
D115: хлеб черн.
D118: итого | F118: 0 | G118: 0 | H118: 0 | I118: 0 | J118: 0 | L118: 0
A119: =A101 -> 2 | B119: =B101 -> 1 | C119: Итого за день: | F119: 500 | G119: 20.14 | H119: 18.78 | I119: 79.59 | J119: 558.75 | L119: 77.76
A120: 2 | B120: 2 | C120: Завтрак | D120: =[1]Лист1!D49 -> гор.блюдо | E120: Овощи тушеные с мясом | F120: 200 | G120: 12.48 | H120: 15.68 | I120: 19.34 | J120: 271.5 | K120: №143,241 Сбор.рец. На прод-ию для обуч. Во всех образ.учреж-Дели 2017
D122: =[1]Лист1!D51 -> гор.напиток | E122: Компот из сухофруктов (75С) | F122: 200 | G122: 0.66 | H122: 0.09 | I122: 22.03 | J122: 92.8 | K122: №349 Сбор.рец. На прод-ию для обуч. Во всех образ.учреж-Дели 2017
D123: =D114 -> хлеб бел.
D124: хлеб черн. | E124: Хлеб ржаной | F124: 20 | G124: 1.32 | H124: 0.24 | I124: 7.92 | J124: 39.6 | K124: Хим.состав и калорийность российских продуктов питания,табл 6, стр 144 , 2012 Дели +
D125: закуска
D126: фрукты | E126: Плоды и ягоды свежие (апельсины) | F126: 180 | G126: 1.62 | H126: 0.36 | I126: 14.58 | J126: 77.4 | K126: Хим.состав и калорийность российских продуктов питания табл 9 стр 184 , 2012 Дели +
D127: итого | F127: 600 | G127: 16.08 | H127: 16.37 | I127: 63.87 | J127: 481.3 | L127: 77.76
A128: =A120 -> 2 | B128: =B120 -> 2 | C128: Обед | D128: закуска
D129: 1 блюдо
D130: 2 блюдо
D131: гарнир
D132: напиток
D133: хлеб бел.
D134: хлеб черн.
D137: итого | F137: 0 | G137: 0 | H137: 0 | I137: 0 | J137: 0 | L137: 0
A138: =A120 -> 2 | B138: =B120 -> 2 | C138: Итого за день: | F138: 600 | G138: 16.08 | H138: 16.37 | I138: 63.87 | J138: 481.3 | L138: 77.76
A139: 2 | B139: 3 | C139: Завтрак | D139: гор.блюдо | E139: Плов из говядины с рисовой крупой | F139: 200 | G139: 15.95 | H139: 19.55 | I139: 39.75 | J139: 408.42 | K139: № 265 Сбор.рец. На прод-ию для обуч. Во всех образ.учреж-Дели -2017
D141: =[1]Лист1!D58 -> гор.напиток | E141: Чай с сахаром | F141: 200 | G141: 0.07 | H141: 0.02 | I141: 10.01 | J141: 40 | K141: № 376 Сбор.рец. На прод-ию для обуч. Во всех образ.учреж-Дели 2017
D142: =$D$152 -> хлеб бел. | E142: Хлеб пшеничный | F142: 25 | G142: 58.75 | H142: 1.9 | I142: 0.2 | J142: 12.3 | K142: Хим.состав и калорийность российских продуктов питания табл 6 стр 134 , 2012 Дели +
D143: хлеб черн. | E143: Хлеб ржаной | F143: 20 | G143: 39.6 | H143: 1.32 | I143: 0.24 | J143: 7.92 | K143: Хим.состав и калорийность российских продуктов питания,табл 6, стр 144 , 2012 Дели +
D144: закуска
D145: фрукты | E145: Плоды и ягоды свежие (яблоки) | F145: 100 | G145: 0.4 | H145: 0.4 | I145: 9.8 | J145: 47 | K145: Хим.состав и калорийность российских продуктов питания табл 9 стр 184 , 2012 Дели +
D146: итого | F146: 545 | G146: 19.64 | H146: 20.41 | I146: 79.78 | J146: 593.77 | L146: 77.76
A147: =A139 -> 2 | B147: =B139 -> 3 | C147: Обед | D147: закуска
D148: 1 блюдо
D149: 2 блюдо
D150: гарнир
D151: напиток
D152: хлеб бел.
D153: хлеб черн.
D156: итого | F156: 0 | G156: 0 | H156: 0 | I156: 0 | J156: 0 | L156: 0
A157: =A139 -> 2 | B157: =B139 -> 3 | C157: Итого за день: | F157: 545 | G157: 19.64 | H157: 20.41 | I157: 79.78 | J157: 593.77 | L157: 77.76
A158: 2 | B158: 4 | C158: Завтрак | D158: гор.блюдо | E158: Котлета из мяса птицы с макаронными изделиями отварными, с маслом сливочным | F158: 230 | G158: 11.45 | H158: 12.46 | I158: 31.32 | J158: 289.95 | K158: ТТК
D160: гор.напиток | E160: Какао с молоком | F160: 200 | G160: 1.58 | H160: 3.54 | I160: 7.6 | J160: 78.6 | K160: № 382 Сбор.рец. На прод-ию для обуч. Во всех образ.учреж-Дели 2017
D161: хлеб бел. | E161: Хлеб пшеничный | F161: 30 | G161: 2.28 | H161: 0.24 | I161: 14.76 | J161: 70.5 | K161: Хим.состав и калорийность российских продуктов питания табл 6 стр 134 , 2012 Дели +
D162: хлеб черн.
D163: закуска | E163: Салат из моркови | F163: 60 | G163: 0.74 | H163: 0.06 | I163: 9.98 | J163: 49.02 | K163: ТТК
D164: фрукты
D165: итого | F165: 520 | G165: 16.05 | H165: 16.3 | I165: 63.66 | J165: 488.07 | L165: 77.76
A166: =A158 -> 2 | B166: =B158 -> 4 | C166: Обед | D166: закуска
D167: 1 блюдо
D168: 2 блюдо
D169: гарнир
D170: напиток
D171: хлеб бел.
D172: хлеб черн.
D175: итого | F175: 0 | G175: 0 | H175: 0 | I175: 0 | J175: 0 | L175: 0
A176: =A158 -> 2 | B176: =B158 -> 4 | C176: Итого за день: | F176: 520 | G176: 16.05 | H176: 16.3 | I176: 63.66 | J176: 488.07 | L176: 77.76
A177: 2 | B177: 5 | C177: Завтрак | D177: гор.блюдо | E177: Биточки рыбные с картофельным пюре, с маслом сливочным | F177: 230 | G177: 12.24 | H177: 12.49 | I177: 31.49 | J177: 290.55 | K177: ТТК
D179: гор.напиток | E179: Компот из свежих яблок (75С) | F179: 200 | G179: 0.16 | H179: 0.16 | I179: 17.9 | J179: 74.6 | K179: №342 Сбор.рец. На прод-ию для обуч. Во всех образ.учреж-Дели 2017
D180: хлеб бел. | E180: Хлеб пшеничный | F180: 30 | G180: 2.28 | H180: 0.24 | I180: 14.76 | J180: 70.5 | K180: Хим.состав и калорийность российских продуктов питания табл 6 стр 134 , 2012 Дели +
D181: хлеб черн.
D182: закуска | E182: Салат из отварной свеклы | F182: 60 | G182: 0.84 | H182: 3.61 | I182: 4.96 | J182: 55.68 | K182: № 52 Сбор.рец. На прод-ию для обуч. Во всех образ.учреж-Дели -2017
D183: фрукты
D184: итого | F184: 518 | G184: 15.52 | H184: 16.5 | I184: 69.11 | J184: 491.33 | L184: 77.76
A185: =A177 -> 2 | B185: =B177 -> 5 | C185: Обед | D185: закуска
D186: 1 блюдо
D187: 2 блюдо
D188: гарнир
D189: напиток
D190: хлеб бел.
D191: хлеб черн.
D194: итого | F194: =SUM(F185:F193) -> 0 | G194: =SUM(G185:G193) -> 0 | H194: =SUM(H185:H193) -> 0 | I194: =SUM(I185:I193) -> 0 | J194: =SUM(J185:J193) -> 0 | L194: =SUM(L185:L193) -> 0
A195: =A177 -> 2 | B195: =B177 -> 5 | C195: Итого за день: | F195: =F184+F194 -> 518 | G195: =G184+G194 -> 15.52 | H195: =H184+H194 -> 16.5 | I195: =I184+I194 -> 69.11 | J195: =J184+J194 -> 491.33 | L195: =L184+L194 -> 77.76
C196: Среднее значение за период: | F196: =(F24+F43+F62+F81+F100+F119+F138+F157+F176+F195)/(IF(F24=0, 0, 1)+IF(F43=0, 0, 1)+IF(F62=0, 0, 1)+IF(F81=0, 0, 1)+IF(F100=0, 0, 1)+IF(F119=0, 0, 1)+IF(F138=0, 0, 1)+IF(F157=0, 0, 1)+IF(F176=0, 0, 1)+IF(F195=0, 0, 1)) -> 537.6 | G196: =(G24+G43+G62+G81+G100+G119+G138+G157+G176+G195)/(IF(G24=0, 0, 1)+IF(G43=0, 0, 1)+IF(G62=0, 0, 1)+IF(G81=0, 0, 1)+IF(G100=0, 0, 1)+IF(G119=0, 0, 1)+IF(G138=0, 0, 1)+IF(G157=0, 0, 1)+IF(G176=0, 0, 1)+IF(G195=0, 0, 1)) -> 17.785 | H196: =(H24+H43+H62+H81+H100+H119+H138+H157+H176+H195)/(IF(H24=0, 0, 1)+IF(H43=0, 0, 1)+IF(H62=0, 0, 1)+IF(H81=0, 0, 1)+IF(H100=0, 0, 1)+IF(H119=0, 0, 1)+IF(H138=0, 0, 1)+IF(H157=0, 0, 1)+IF(H176=0, 0, 1)+IF(H195=0, 0, 1)) -> 17.944 | I196: =(I24+I43+I62+I81+I100+I119+I138+I157+I176+I195)/(IF(I24=0, 0, 1)+IF(I43=0, 0, 1)+IF(I62=0, 0, 1)+IF(I81=0, 0, 1)+IF(I100=0, 0, 1)+IF(I119=0, 0, 1)+IF(I138=0, 0, 1)+IF(I157=0, 0, 1)+IF(I176=0, 0, 1)+IF(I195=0, 0, 1)) -> 74.101 | J196: =(J24+J43+J62+J81+J100+J119+J138+J157+J176+J195)/(IF(J24=0, 0, 1)+IF(J43=0, 0, 1)+IF(J62=0, 0, 1)+IF(J81=0, 0, 1)+IF(J100=0, 0, 1)+IF(J119=0, 0, 1)+IF(J138=0, 0, 1)+IF(J157=0, 0, 1)+IF(J176=0, 0, 1)+IF(J195=0, 0, 1)) -> 538.228 | L196: =(L24+L43+L62+L81+L100+L119+L138+L157+L176+L195)/(IF(L24=0, 0, 1)+IF(L43=0, 0, 1)+IF(L62=0, 0, 1)+IF(L81=0, 0, 1)+IF(L100=0, 0, 1)+IF(L119=0, 0, 1)+IF(L138=0, 0, 1)+IF(L157=0, 0, 1)+IF(L176=0, 0, 1)+IF(L195=0, 0, 1)) -> 77.76
